{"text_format":"1","workbook":"xlsx","n_sheets":3,"sheets":["Sheet1","Sheet2","Sheet3"],"not_rendered":{"charts":0,"images":0,"macros":1,"external_links":0,"defined_names":0,"comments":0,"pivot_tables":0},"unopened":[],"bounds":{"document_bytes":16777216,"sheet_cells":100000,"rows_first":2000,"rows_last":500,"rows_between":2000,"halvings":0,"cell_chars":16384,"cell_head_chars":4096},"cells_cut":0,"cells_raw":0,"read":"whole","date_system":"1900"}

{"sheet":"Sheet1","index":0,"n_rows":57,"n_cols":14,"rows_kept":57,"cut":false,"hidden":false,"merged":[]}
[null,null,null,null,null,null,null,null,null,null,null,"Boja",null,"Indeks boje"]
[null,null,null,{"$f":"boja(A2)","v":14},null,null,null,null,null,null,null,1,null,{"$f":"boja(L2)","v":1}]
[null,null,null,{"$f":"boja(A3)","v":3},null,null,null,null,null,null,null,2,null,{"$f":"boja(L3)","v":2}]
[null,null,null,null,null,null,null,null,null,null,null,3,null,3]
[null,null,null,null,null,null,null,null,null,null,null,4,null,4]
[null,null,null,null,null,null,null,null,null,null,null,5,null,5]
[null,null,null,null,null,null,null,null,null,null,null,6,null,6]
[null,null,null,null,null,null,null,null,null,null,null,7,null,7]
[null,null,null,null,null,null,null,null,null,null,null,8,null,8]
[null,null,null,null,null,null,null,null,null,null,null,9,null,9]
[null,null,null,null,null,null,null,null,null,null,null,10,null,10]
[null,null,null,null,null,null,null,null,null,null,null,11,null,11]
[null,null,null,null,null,null,null,null,null,null,null,12,null,12]
[null,null,null,null,null,null,null,null,null,null,null,13,null,13]
[null,null,null,null,null,null,null,null,null,null,null,14,null,14]
[null,null,null,null,null,null,null,null,null,null,null,15,null,15]
[null,null,null,null,null,null,null,null,null,null,null,16,null,16]
[null,null,null,null,null,null,null,null,null,null,null,17,null,17]
[null,null,null,null,null,null,null,null,null,null,null,18,null,18]
[null,null,null,null,null,null,null,null,null,null,null,19,null,19]
[null,null,null,null,null,null,null,null,null,null,null,20,null,20]
[null,null,null,null,null,null,null,null,null,null,null,21,null,21]
[null,null,null,null,null,null,null,null,null,null,null,22,null,22]
[null,null,null,null,null,null,null,null,null,null,null,23,null,23]
[null,null,null,null,null,null,null,null,null,null,null,24,null,24]
[null,null,null,null,null,null,null,null,null,null,null,25,null,25]
[null,null,null,null,null,null,null,null,null,null,null,26,null,26]
[null,null,null,null,null,null,null,null,null,null,null,27,null,27]
[null,null,null,null,null,null,null,null,null,null,null,28,null,28]
[null,null,null,null,null,null,null,null,null,null,null,29,null,29]
[null,null,null,null,null,null,null,null,null,null,null,30,null,30]
[null,null,null,null,null,null,null,null,null,null,null,31,null,31]
[null,null,null,null,null,null,null,null,null,null,null,32,null,32]
[null,null,null,null,null,null,null,null,null,null,null,33,null,33]
[null,null,null,null,null,null,null,null,null,null,null,34,null,34]
[null,null,null,null,null,null,null,null,null,null,null,35,null,35]
[null,null,null,null,null,null,null,null,null,null,null,36,null,36]
[null,null,null,null,null,null,null,null,null,null,null,37,null,37]
[null,null,null,null,null,null,null,null,null,null,null,38,null,38]
[null,null,null,null,null,null,null,null,null,null,null,39,null,39]
[null,null,null,null,null,null,null,null,null,null,null,40,null,40]
[null,null,null,null,null,null,null,null,null,null,null,41,null,41]
[null,null,null,null,null,null,null,null,null,null,null,42,null,42]
[null,null,null,null,null,null,null,null,null,null,null,43,null,43]
[null,null,null,null,null,null,null,null,null,null,null,44,null,44]
[null,null,null,null,null,null,null,null,null,null,null,45,null,45]
[null,null,null,null,null,null,null,null,null,null,null,46,null,46]
[null,null,null,null,null,null,null,null,null,null,null,47,null,47]
[null,null,null,null,null,null,null,null,null,null,null,48,null,48]
[null,null,null,null,null,null,null,null,null,null,null,49,null,49]
[null,null,null,null,null,null,null,null,null,null,null,50,null,50]
[null,null,null,null,null,null,null,null,null,null,null,51,null,51]
[null,null,null,null,null,null,null,null,null,null,null,52,null,52]
[null,null,null,null,null,null,null,null,null,null,null,53,null,53]
[null,null,null,null,null,null,null,null,null,null,null,54,null,54]
[null,null,null,null,null,null,null,null,null,null,null,55,null,55]
[null,null,null,null,null,null,null,null,null,null,null,56,null,56]

{"sheet":"Sheet2","index":1,"n_rows":0,"n_cols":0,"rows_kept":0,"cut":false,"hidden":false,"merged":[]}

{"sheet":"Sheet3","index":2,"n_rows":0,"n_cols":0,"rows_kept":0,"cut":false,"hidden":false,"merged":[]}